fUSD/lending_fUSD_20240827
["ID","MTS","AMOUNT","RATE_DAILY","PERIOD"]
[336222618,1724740291242,-35000.0,0.00010999,2]
[336222619,1724740291252,-195.998343,0.00010999,2]
[336222620,1724740291262,-195.998343,0.00010999,2]
[336222621,1724740291271,-195.998343,0.00010999,2]
[336222622,1724740291280,-1489.0,0.00010999,2]
[336222623,1724740291290,-1489.0,0.00010999,2]
[336222624,1724740291299,-1489.0,0.00010999,2]
[336222625,1724740291308,-1489.0,0.00010999,2]
[336222626,1724740291318,-1489.06455379,0.00010999,2]
[336222627,1724740291327,-906.84,0.00010999,2]
[336222628,1724740291337,-906.84,0.00010999,2]
[336222629,1724740291345,-906.84,0.00010999,2]
[336222630,1724740291354,-906.84,0.00010999,2]
[336222631,1724740291364,-907.00778792,0.00010999,2]
[336222632,1724740291374,-500.0,0.00010999,2]
[336222633,1724740291383,-500.0,0.00010999,2]
[336222634,1724740291393,-410.45092959,0.00010999,2]
[336222635,1724740291402,-636.72,0.00010999,2]
[336222636,1724740291412,-636.72,0.00010999,2]
[336222637,1724740291421,-636.72,0.00010999,2]
[336222638,1724740291431,-636.72,0.00010999,2]
[336222639,1724740291440,-636.72,0.00010999,2]
[336222640,1724740291449,-636.7708114,0.00010999,2]
[336222641,1724740291458,-1851.79,0.00010999,2]
[336222642,1724740291467,-1851.79,0.00010999,2]
[336222643,1724740291476,-1851.79,0.00010999,2]
[336222644,1724740291486,-1851.79,0.00010999,2]
[336222645,1724740291495,-1851.79,0.00010999,2]
[336222646,1724740291505,-1851.91,0.00010999,2]
[336222647,1724740291514,-1168.32,0.00010999,2]
[336222648,1724740291524,-1168.32,0.00010999,2]
[336222649,1724740291533,-1168.32,0.00010999,2]
[336222650,1724740291542,-1168.32,0.00010999,2]
[336222651,1724740291552,-1168.32,0.00010999,2]
[336222652,1724740291561,-1168.49138399,0.00010999,2]
[336222653,1724740291571,-398.74424537,0.00010999,2]
[336222654,1724740291580,-1062.0,0.00010999,2]
[336222655,1724740291590,-1062.0,0.00010999,2]
[336222656,1724740291599,-1062.0,0.00010999,2]
[336222657,1724740291608,-1062.0,0.00010999,2]
[336222658,1724740291617,-1062.0,0.00010999,2]
[336222659,1724740291627,-1062.16624814,0.00010999,2]
[336222660,1724740291636,-855.44,0.00010999,2]
[336222661,1724740291645,-855.44,0.00010999,2]
[336222662,1724740291654,-855.44,0.00010999,2]
[336222663,1724740291664,-855.44,0.00010999,2]
[336222664,1724740291673,-855.44,0.00010999,2]
[336222665,1724740291682,-855.49484998,0.00010999,2]
[336222666,1724740291691,-534.39,0.00010999,2]
[336222667,1724740291702,-534.39,0.00010999,2]
[336222668,1724740291711,-534.39,0.00010999,2]
[336222669,1724740291720,-534.39,0.00010999,2]
[336222670,1724740291730,-534.39,0.00010999,2]
[336222671,1724740291739,-534.50453028,0.00010999,2]
[336222672,1724740291750,-737.81,0.00010999,2]
[336222673,1724740291759,-737.81,0.00010999,2]
[336222674,1724740291768,-737.81,0.00010999,2]
[336222675,1724740291779,-737.81,0.00010999,2]
[336222676,1724740291790,-737.81,0.00010999,2]
[336222677,1724740291800,-737.91882243,0.00010999,2]
[336222678,1724740291811,-606.48,0.00010999,2]
[336222679,1724740291822,-606.48,0.00010999,2]
[336222680,1724740291832,-606.48,0.00010999,2]
[336222681,1724740291842,-606.48,0.00010999,2]
[336222682,1724740291851,-606.48,0.00010999,2]
[336222683,1724740291861,-606.71831664,0.00010999,2]
[336222684,1724740291871,-500.0,0.00010999,2]
[336222685,1724740291880,-500.0,0.00010999,2]
[336222686,1724740291889,-500.0,0.00010999,2]
[336222687,1724740291898,-626.81118663,0.00010999,2]
[336222688,1724740291908,-566.48,0.00010999,2]
[336222689,1724740291918,-566.48,0.00010999,2]
[336222690,1724740291928,-566.48,0.00010999,2]
[336222691,1724740291938,-566.48,0.00010999,2]
[336222692,1724740291948,-566.48,0.00010999,2]
[336222693,1724740291958,-566.50290501,0.00010999,2]
[336222694,1724740291967,-754.64,0.00010999,2]
[336222695,1724740291977,-754.64,0.00010999,2]
[336222696,1724740291987,-754.64,0.00010999,2]
[336222697,1724740291997,-754.64,0.00010999,2]
[336222698,1724740292007,-754.64,0.00010999,2]
[336222699,1724740292016,-754.8,0.00010999,2]
[336222700,1724740292026,-500.0,0.00010999,2]
[336222701,1724740292036,-500.0,0.00010999,2]
[336222702,1724740292045,-546.17736951,0.00010999,2]
[336222703,1724740292055,-500.0,0.00010999,2]
[336222704,1724740292065,-374.91069915,0.00010999,2]
[336222705,1724740292075,-565.65,0.00010999,2]
[336222706,1724740292085,-565.65,0.00010999,2]
[336222707,1724740292094,-565.65,0.00010999,2]
[336222708,1724740292104,-565.65,0.00010999,2]
[336222709,1724740292114,-565.65,0.00010999,2]
[336222710,1724740292125,-565.7489574,0.00010999,2]
[336222711,1724740292136,-509.46,0.00010999,2]
[336222712,1724740292146,-459.2,0.00010999,2]
[336222713,1724740292156,-509.46,0.00010999,2]
[336222714,1724740292165,-509.46,0.00010999,2]
[336222715,1724740292175,-509.46,0.00010999,2]
[336222716,1724740292185,-509.65983423,0.00010999,2]
[336222717,1724740292195,-500.0,0.00010999,2]
[336222718,1724740292320,-531.92376776,0.00010999,2]
[336222719,1724740292339,-945.61,0.00010999,2]
[336222720,1724740292349,-945.61,0.00010999,2]
[336222721,1724740292358,-945.61,0.00010999,2]
[336222722,1724740292367,-945.61,0.00010999,2]
[336222723,1724740292377,-945.61,0.00010999,2]
[336222724,1724740292386,-945.70860157,0.00010999,2]
[336222725,1724740292395,-540.58,0.00010999,2]
[336222726,1724740292405,-540.58,0.00010999,2]
[336222727,1724740292415,-540.58,0.00010999,2]
[336222728,1724740292425,-540.58,0.00010999,2]
[336222729,1724740292435,-540.58,0.00010999,2]
[336222730,1724740292444,-540.72434769,0.00010999,2]
[336222731,1724740292454,-886.86,0.00010999,2]
[336222732,1724740292463,-886.86,0.00010999,2]
[336222733,1724740292473,-886.86,0.00010999,2]
[336222734,1724740292483,-886.86,0.00010999,2]
[336222735,1724740292492,-886.86,0.00010999,2]
[336222736,1724740292502,-887.06221828,0.00010999,2]
[336222737,1724740292511,-426.18904547,0.00010999,2]
[336222738,1724740292522,-516.46,0.00010999,2]
[336222739,1724740292534,-516.46,0.00010999,2]
[336222740,1724740292544,-516.46,0.00010999,2]
[336222741,1724740292554,-516.46,0.00010999,2]
[336222742,1724740292564,-516.46,0.00010999,2]
[336222743,1724740292574,-516.47363317,0.00010999,2]
[336222744,1724740292583,-506.68213634,0.00010999,2]
[336222745,1724740292593,-705.73,0.00010999,2]
[336222746,1724740292604,-705.73,0.00010999,2]
[336222747,1724740292615,-705.73,0.00010999,2]
[336222748,1724740292626,-705.73,0.00010999,2]
[336222749,1724740292637,-705.73,0.00010999,2]
[336222750,1724740292648,-705.80332237,0.00010999,2]
[336222751,1724740292657,-500.0,0.00010999,2]
[336222752,1724740292668,-500.0,0.00010999,2]
[336222753,1724740292678,-500.0,0.00010999,2]
[336222754,1724740292688,-500.0,0.00010999,2]
[336222755,1724740292698,-500.0,0.00010999,2]
[336222756,1724740292709,-500.0,0.00010999,2]
[336222757,1724740292719,-534.9657032,0.00010999,2]
[336222758,1724740292730,-445.6839601,0.00010999,2]
[336222759,1724740292742,-631.13,0.00010999,2]
[336222760,1724740292752,-631.13,0.00010999,2]
[336222761,1724740292762,-631.13,0.00010999,2]
[336222762,1724740292773,-631.13,0.00010999,2]
[336222763,1724740292783,-631.13,0.00010999,2]
[336222764,1724740292793,-631.29429408,0.00010999,2]
[336222765,1724740292803,-1319.67,0.00010999,2]
[336222766,1724740292813,-1319.67,0.00010999,2]
[336222767,1724740292824,-1319.67,0.00010999,2]
[336222768,1724740292835,-1319.67,0.00010999,2]
[336222769,1724740292846,-1319.67,0.00010999,2]
[336222770,1724740292857,-1319.85666062,0.00010999,2]
[336222771,1724740292866,-2232.54,0.00010999,2]
[336222772,1724740292876,-510.18653922,0.00010999,2]
[336222773,1724740292885,-2232.54,0.00010999,2]
[336222774,1724740292895,-2232.54,0.00010999,2]
[336222775,1724740292904,-2232.54,0.00010999,2]
[336222776,1724740292914,-2232.54,0.00010999,2]
[336222777,1724740292926,-2232.65940672,0.00010999,2]
[336222778,1724740292935,-500.0,0.00010999,2]
[336222779,1724740292944,-500.0,0.00010999,2]
[336222780,1724740292954,-443.88404081,0.00010999,2]
[336222781,1724740292964,-573.92,0.00010999,2]
[336222782,1724740292974,-573.92,0.00010999,2]
[336222783,1724740292983,-573.92,0.00010999,2]
[336222784,1724740292993,-573.92,0.00010999,2]
[336222785,1724740293002,-1911.46,0.00010999,2]
[336222786,1724740293012,-573.92,0.00010999,2]
[336222787,1724740293022,-1911.46,0.00010999,2]
[336222788,1724740293032,-573.95825746,0.00010999,2]
[336222789,1724740293042,-1911.46,0.00010999,2]
[336222790,1724740293051,-1911.46,0.00010999,2]
[336222791,1724740293061,-1911.46,0.00010999,2]
[336222792,1724740293071,-1911.61602358,0.00010999,2]
[336222793,1724740293081,-631.73,0.00010999,2]
[336222794,1724740293091,-631.73,0.00010999,2]
[336222795,1724740293101,-631.73,0.00010999,2]
[336222796,1724740293111,-631.73,0.00010999,2]
[336222797,1724740293121,-631.73,0.00010999,2]
[336222798,1724740293135,-631.81843477,0.00010999,2]
[336222799,1724740293145,-713.41,0.00010999,2]
[336222800,1724740293155,-713.41,0.00010999,2]
[336222801,1724740293165,-713.41,0.00010999,2]
[336222802,1724740293177,-713.41,0.00010999,2]
[336222803,1724740293187,-713.41,0.00010999,2]
[336222804,1724740293196,-713.49972538,0.00010999,2]
[336222805,1724740293206,-1242.32,0.00010999,2]
[336222806,1724740293216,-1242.32,0.00010999,2]
[336222807,1724740293226,-1242.32,0.00010999,2]
[336222808,1724740293235,-1242.32,0.00010999,2]
[336222809,1724740293245,-1242.32,0.00010999,2]
[336222810,1724740293255,-1242.35464191,0.00010999,2]
[336222811,1724740293264,-1363.52,0.00010999,2]
[336222812,1724740293274,-1363.52,0.00010999,2]
[336222813,1724740293284,-1363.52,0.00010999,2]
[336222814,1724740293294,-1363.52,0.00010999,2]
[336222815,1724740293304,-1363.52,0.00010999,2]
[336222816,1724740293314,-1363.54011048,0.00010999,2]
[336222817,1724740293324,-646.5,0.00010999,2]
[336222818,1724740293333,-646.5,0.00010999,2]
[336222819,1724740293343,-646.5,0.00010999,2]
[336222820,1724740293353,-646.5,0.00010999,2]
[336222821,1724740293363,-646.5,0.00010999,2]
[336222822,1724740293372,-646.62568153,0.00010999,2]
[336222823,1724740293382,-503.5,0.00010999,2]
[336222824,1724740293392,-503.5,0.00010999,2]
[336222825,1724740293402,-503.5,0.00010999,2]
[336222826,1724740293411,-503.5,0.00010999,2]
[336222827,1724740293421,-503.5,0.00010999,2]
[336222828,1724740293431,-503.51173643,0.00010999,2]
[336222829,1724740293441,-521.27,0.00010999,2]
[336222830,1724740293451,-521.27,0.00010999,2]
[336222831,1724740293461,-521.27,0.00010999,2]
[336222832,1724740293470,-521.27,0.00010999,2]
[336222833,1724740293480,-521.27,0.00010999,2]
[336222834,1724740293490,-521.33959994,0.00010999,2]
[336222835,1724740293499,-500.0,0.00010999,2]
[336222836,1724740293509,-500.0,0.00010999,2]
[336222837,1724740293519,-506.47956068,0.00010999,2]
[336222838,1724740293529,-1244.68,0.00010999,2]
[336222839,1724740293538,-1244.68,0.00010999,2]
[336222840,1724740293548,-1244.68,0.00010999,2]
[336222841,1724740293558,-1244.68,0.00010999,2]
[336222842,1724740293567,-1244.68,0.00010999,2]
[336222843,1724740293576,-1244.69072769,0.00010999,2]
[336222844,1724740293586,-513.18,0.00010999,2]
[336222845,1724740293595,-513.18,0.00010999,2]
[336222846,1724740293605,-513.18,0.00010999,2]
[336222847,1724740293614,-513.18,0.00010999,2]
[336222848,1724740293624,-513.18,0.00010999,2]
[336222849,1724740293634,-513.20756599,0.00010999,2]
[336222850,1724740293643,-463.75554684,0.00010999,2]
[336222851,1724740293653,-500.0,0.00010999,2]
[336222852,1724740293663,-500.0,0.00010999,2]
[336222853,1724740293673,-500.0,0.00010999,2]
[336222854,1724740293683,-500.0,0.00010999,2]
[336222855,1724740293692,-611.7453584,0.00010999,2]
[336222856,1724740293702,-1042.9,0.00010999,2]
[336222857,1724740293712,-1042.9,0.00010999,2]
[336222858,1724740293722,-1042.9,0.00010999,2]
[336222859,1724740293731,-1042.9,0.00010999,2]
[336222860,1724740293741,-1042.9,0.00010999,2]
[336222861,1724740293750,-1043.02921494,0.00010999,2]
[336222862,1724740293759,-401576.37881004,0.00011,2]
[336222863,1724740293938,-749.37644773,0.00010383,2]
[336222864,1724740293947,-17662.28275663,0.00011,2]
[336222865,1724740294121,-151.0,0.00010958,2]
[336222866,1724740294136,-117.54607938,0.00010958,2]
[336222867,1724740294147,-383.03232644,0.00010958,2]
[336222868,1724740294157,-500.0,0.00010958,2]
[336222869,1724740294168,-500.0,0.00010958,2]
[336222870,1724740294178,-151.0,0.00010958,2]
[336222871,1724740294188,-500.0,0.00010958,2]
[336222872,1724740294198,-151.0,0.00010958,2]
[336222873,1724740294208,-334.41590277,0.00010958,2]
[336222874,1724740294217,-151.0,0.00010958,2]
[336222875,1724740294227,-151.0,0.00010958,2]
[336222876,1724740294236,-171.97678824,0.00010958,2]
[336222877,1724740294247,-330.39793408,0.00010958,2]
[336222878,1724740294257,-500.0,0.00010958,2]
[336222879,1724740294266,-151.0,0.00010958,2]
[336222880,1724740294275,-500.0,0.00010958,2]
[336222881,1724740294284,-500.0,0.00010958,2]
[336222882,1724740294293,-1744.26257453,0.00011,2]
[336222883,1724740294304,-80132.00000004,0.00011,2]
[336222884,1724740294315,-3065.15605127,0.00011,2]
[336222885,1724740294331,-500.0,0.00010958,2]
[336222886,1724740294339,-2499.99999997,0.00011,2]
[336222887,1724740294353,-6000.0,0.00011,2]
[336222888,1724740294832,341.25138439,0.0001,4]
[336222889,1724740295455,3879.15513227,0.0001,2]
[336222890,1724740295580,11983.64872997,9.962e-05,2]
[336222891,1724740295620,181.08741925,9.962e-05,2]
[336222892,1724740295698,528.96350263,9.962e-05,2]
[336222893,1724740295976,155.0,9.962e-05,2]
[336222894,1724740750411,285.94,8.237e-05,2]
[336222895,1724740859435,1257.5209126,9.984e-05,2]
[336222896,1724741115782,150.0,9.888e-05,2]
[336222897,1724741146397,213.42550209,9.984e-05,2]
[336222912,1724741251152,282.58,8.219e-05,2]
[336222913,1724741277775,476.74,9.895e-05,2]
[336222914,1724741304956,950.23158509,9.962e-05,2]
[336222915,1724741367889,442.40858958,9.999e-05,2]
[336222916,1724741398883,533.44,9.88e-05,2]
[336222917,1724741408809,159.62357463,9.999e-05,2]
[336222918,1724741420178,15490.03475058,9.999e-05,2]
[336222930,1724741431764,-300.0,0.00010008,2]
[336222931,1724741431773,-300.0,0.00010008,2]
[336222932,1724741431782,-1741.9986699,0.00010009,2]
[336222933,1724741431791,-155.86765204,0.00010026,2]
[336222934,1724741431800,-400.0,0.00010055,2]
[336222935,1724741431809,-1706.88138312,0.00010097,2]
[336222936,1724741431818,-527.0,0.00010203,2]
[336222937,1724741431827,-1000.0,0.00010285,2]
[336222938,1724741431835,-173.22,0.00010361,2]
[336222939,1724741431845,-282.58,0.0001047,2]
[336222940,1724741431854,-150.0,0.00010684,2]
[336222941,1724741431863,-498.52,0.00010684,2]
[336222942,1724741431872,-9999.99,0.00010684,2]
[336222943,1724741431880,-150.0,0.00010685,2]
[336222944,1724741431890,-650.5,0.00010685,2]
[336222945,1724741431899,-5171.16,0.00010685,2]
[336222946,1724741431908,-264.22,0.000107,2]
[336222947,1724741431917,-472.5094,0.000107,2]
[336222948,1724741431926,-1500.0,0.00010713,2]
[336222949,1724741431936,-156.52434589,0.000108,2]
[336222950,1724741431945,-433.7499082,0.00010858,2]
[336222951,1724741431954,-1930.1682,0.00010858,2]
[336222952,1724741431964,-1028.2745,0.00010858,2]
[336222953,1724741431973,-172.814,0.00010858,2]
[336222954,1724741431982,-39218.1972,0.00010858,2]
[336222955,1724741431991,-1000.0,0.00010858,2]
[336222956,1724741432000,-1471.0669,0.00010858,2]
[336222957,1724741432012,-44679.3487,0.00010858,2]
[336222958,1724741432024,-7500.0,0.00010858,2]
[336222959,1724741432036,-2328.7393,0.00010858,2]
[336222960,1724741432048,-266.0,0.0001086,2]
[336222961,1724741432059,-229.03019611,0.00010862,2]
[336222962,1724741432071,-155.0,0.00010862,2]
[336222963,1724741432082,-433.74990818,0.00010867,2]
[336222964,1724741432094,-433.74990818,0.00010876,2]
[336222966,1724741432104,-380.72044543,0.00010888,2]
[336222968,1724741432114,-193.40626119,0.00010888,2]
[336222970,1724741432131,-1030.71887721,0.0001089,2]
[336222972,1724741432143,-5411.11097855,0.0001089,2]
[336222974,1724741432152,-332.7353083,0.00010892,2]
[336222976,1724741432163,-197.23721453,0.00010899,2]
[336222978,1724741432174,-347.92812216,0.00010899,2]
[336222980,1724741432185,-155.0,0.00010899,2]
[336222982,1724741432196,-219.09322349,0.00010899,2]
[336222984,1724741432207,-1583.79426262,0.000109,2]
[336222986,1724741432218,-499.99,0.000109,2]
[336222988,1724741432229,-5927.562632,0.000109,2]
[336222990,1724741432239,-161.00615155,0.000109,2]
[336222991,1724741432251,-161.00615155,0.000109,2]
[336222993,1724741432262,-161.00615155,0.000109,2]
[336222996,1724741432273,-161.00615155,0.000109,2]
[336222998,1724741432284,-161.00615155,0.000109,2]
[336223000,1724741432295,-332.7353083,0.000109,2]
[336223002,1724741432306,-381.65281164,0.000109,2]
[336223004,1724741432316,-411.78891726,0.000109,2]
[336223006,1724741432327,-370.7493417,0.000109,2]
[336223008,1724741432339,-408.9014,0.00010932,2]
[336223010,1724741432349,-319.38158331,0.00010949,2]
[336223012,1724741432359,-155.0,0.00010949,2]
[336223015,1724741432374,-650.04785045,0.00010949,2]
[336223017,1724741432385,-167.32599615,0.00010949,2]
[336223020,1724741432398,-155.0,0.00010949,2]
[336223022,1724741432409,-171.16151565,0.00010955,2]
[336223024,1724741432421,-500.0,0.00010958,2]
[336223026,1724741432433,-500.0,0.00010958,2]
[336223028,1724741432443,-500.0,0.00010958,2]
[336223030,1724741432454,-500.0,0.00010958,2]
[336223032,1724741432463,-500.0,0.00010958,2]
[336223035,1724741432474,-500.0,0.00010958,2]
[336223037,1724741432486,-500.0,0.00010958,2]
[336223039,1724741432497,-500.0,0.00010958,2]
[336223041,1724741432508,-500.0,0.00010958,2]
[336223043,1724741432519,-500.0,0.00010958,2]
[336223046,1724741432531,-500.0,0.00010958,2]
[336223048,1724741432543,-500.0,0.00010958,2]
[336223050,1724741432556,-500.0,0.00010958,2]
[336223053,1724741432570,-500.0,0.00010958,2]
[336223055,1724741432581,-500.0,0.00010958,2]
[336223057,1724741432592,-500.0,0.00010958,2]
[336223059,1724741432604,-500.0,0.00010958,2]
[336223062,1724741432617,-500.0,0.00010958,2]
[336223064,1724741432629,-500.0,0.00010958,2]
[336223066,1724741432641,-500.0,0.00010958,2]
[336223069,1724741432653,-500.0,0.00010958,2]
[336223071,1724741432666,-500.0,0.00010958,2]
[336223073,1724741432676,-500.0,0.00010958,2]
[336223075,1724741432689,-188.47476626,0.00010958,2]
[336223078,1724741432707,-311.52523374,0.00010958,2]
[336223080,1724741432718,-500.0,0.00010958,2]
[336223082,1724741432729,-71.89374951,0.00010958,2]
[336223085,1724741432744,-428.10625049,0.00010958,2]
[336223087,1724741432758,-500.0,0.00010958,2]
[336223089,1724741432770,-500.0,0.00010958,2]
[336223091,1724741432781,-500.0,0.00010958,2]
[336223093,1724741432794,-500.0,0.00010958,2]
[336223095,1724741432805,-500.0,0.00010958,2]
[336223098,1724741432816,-500.0,0.00010958,2]
[336223100,1724741432828,-221.06395201,0.00010958,2]
[336223102,1724741432845,-278.93604799,0.00010958,2]
[336223104,1724741432855,-56.99335193,0.00010958,2]
[336223107,1724741432869,-348.89010204,0.00010958,2]
[336223109,1724741432882,-94.11654603,0.00010958,2]
[336223111,1724741432892,-500.0,0.00010958,2]
[336223113,1724741432903,-349.09845397,0.00010958,2]
[336223116,1724741432927,-150.90154603,0.00010958,2]
[336223118,1724741432937,-199.09845397,0.00010958,2]
[336223121,1724741432949,-300.90154603,0.00010958,2]
[336223123,1724741432959,-500.0,0.00010958,2]
[336223125,1724741432969,-500.0,0.00010958,2]
[336223127,1724741432979,-496.50394074,0.00010958,2]
[336223129,1724741432994,-3.49605926,0.00010958,2]
[336223132,1724741433005,-500.0,0.00010958,2]
[336223134,1724741433016,-500.0,0.00010958,2]
[336223136,1724741433026,-505.01365064,0.00010958,2]
[336223138,1724741433037,-500.0,0.00010958,2]
[336223140,1724741433048,-500.0,0.00010958,2]
[336223142,1724741433059,-500.0,0.00010958,2]
[336223144,1724741433070,-500.0,0.00010958,2]
[336223146,1724741433081,-500.0,0.00010958,2]
[336223148,1724741433092,-500.0,0.00010958,2]
[336223150,1724741433103,-267.78795085,0.00010958,2]
[336223153,1724741433117,-232.21204915,0.00010958,2]
[336223155,1724741433128,-500.0,0.00010958,2]
[336223157,1724741433138,-343.21795085,0.00010958,2]
[336223159,1724741433151,-156.78204915,0.00010958,2]
[336223162,1724741433161,-365.79886373,0.00010958,2]
[336223164,1724741433174,-144.26416172,0.00010958,2]
[336223166,1724741433184,-450.73410505,0.00010958,2]
[336223170,1724741433212,-49.26589495,0.00010958,2]
[336223172,1724741433222,-285.24157767,0.00010958,2]
[336223174,1724741433236,-214.75842233,0.00010958,2]
[336223176,1724741433246,-500.0,0.00010958,2]
[336223178,1724741433257,-500.0,0.00010958,2]
[336223181,1724741433268,-500.0,0.00010958,2]
[336223183,1724741433278,-500.0,0.00010958,2]
[336223185,1724741433289,-500.0,0.00010958,2]
[336223187,1724741433299,-505.75982647,0.00010958,2]
[336223189,1724741433311,-125.15998181,0.00010958,2]
[336223192,1724741433326,-374.84001819,0.00010958,2]
[336223194,1724741433337,-500.0,0.00010958,2]
[336223196,1724741433347,-276.62666278,0.00010958,2]
[336223198,1724741433359,-223.37333722,0.00010958,2]
[336223200,1724741433370,-500.0,0.00010958,2]
[336223202,1724741433380,-111.43863064,0.00010958,2]
[336223205,1724741433393,-388.56136936,0.00010958,2]
[336223207,1724741433404,-500.0,0.00010958,2]
[336223209,1724741433415,-500.0,0.00010958,2]
[336223211,1724741433425,-500.0,0.00010958,2]
[336223213,1724741433435,-425.87693494,0.00010958,2]
[336223215,1724741433448,-74.12306506,0.00010958,2]
[336223217,1724741433459,-500.0,0.00010958,2]
[336223220,1724741433470,-500.0,0.00010958,2]
[336223222,1724741433480,-500.0,0.00010958,2]
[336223224,1724741433491,-500.0,0.00010958,2]
[336223226,1724741433502,-500.0,0.00010958,2]
[336223228,1724741433512,-500.0,0.00010958,2]
[336223230,1724741433522,-500.0,0.00010958,2]
[336223232,1724741433532,-500.0,0.00010958,2]
[336223234,1724741433542,-22.47404726,0.00010958,2]
[336223236,1724741433556,-399.12662878,0.00010958,2]
[336223239,1724741433568,-78.39932396,0.00010958,2]
[336223241,1724741433578,-500.0,0.00010958,2]
[336223243,1724741433589,-584.77851724,0.00010958,2]
[336223245,1724741433599,-42.66122347,0.00010958,2]
[336223248,1724741433612,-345.5,0.00010958,2]
[336223250,1724741433625,-111.83877653,0.00010958,2]
[336223252,1724741433635,-500.0,0.00010958,2]
[336223254,1724741433645,-500.0,0.00010958,2]
[336223256,1724741433656,-500.0,0.00010958,2]
[336223258,1724741433666,-500.0,0.00010958,2]
[336223260,1724741433676,-500.0,0.00010958,2]
[336223262,1724741433686,-500.0,0.00010958,2]
[336223264,1724741433697,-306.36329898,0.00010958,2]
[336223266,1724741433707,-500.0,0.00010958,2]
[336223268,1724741433718,-500.0,0.00010958,2]
[336223270,1724741433728,-252.37932816,0.00010958,2]
[336223273,1724741433742,-253.41637336,0.00010958,2]
[336223275,1724741433757,-500.0,0.00010958,2]
[336223277,1724741433767,-500.0,0.00010958,2]
[336223279,1724741433778,-500.0,0.00010958,2]
[336223281,1724741433788,-500.0,0.00010958,2]
[336223283,1724741433799,-500.0,0.00010958,2]
[336223285,1724741433809,-500.0,0.00010958,2]
[336223287,1724741433820,-500.0,0.00010958,2]
[336223289,1724741433830,-500.0,0.00010958,2]
[336223292,1724741433840,-500.0,0.00010958,2]
[336223294,1724741433851,-500.0,0.00010958,2]
[336223296,1724741433861,-500.0,0.00010958,2]
[336223298,1724741433872,-500.0,0.00010958,2]
[336223300,1724741433882,-500.0,0.00010958,2]
[336223302,1724741433892,-72.37436327,0.00010958,2]
[336223408,1724741437964,-427.62563673,0.00010958,2]
[336223409,1724741437974,-45.71272587,0.00010958,2]
[336223410,1724741437985,-454.28727413,0.00010958,2]
[336223411,1724741437995,-248.92274192,0.00010958,2]
[336223412,1724741438005,-150.51368524,0.00010958,2]
[336223413,1724741438017,-788.24631476,0.00010958,2]
[336223414,1724741438026,-938.76,0.00010958,2]
[336223415,1724741438035,-447.89102854,0.00010958,2]
[336223416,1724741438050,-490.86897146,0.00010958,2]
[336223417,1724741438060,-938.76,0.00010958,2]
[336223418,1724741438070,-938.76,0.00010958,2]
[336223419,1724741438080,-205.41802811,0.00010958,2]
[336223420,1724741438093,-733.34197189,0.00010958,2]
[336223421,1724741438103,-938.76,0.00010958,2]
[336223422,1724741438112,-48.6519628,0.00010958,2]
[336223423,1724741438126,-890.1080372,0.00010958,2]
[336223424,1724741438135,-938.76,0.00010958,2]
[336223425,1724741438144,-938.76,0.00010958,2]
[336223426,1724741438154,-938.76,0.00010958,2]
[336223427,1724741438163,-938.76,0.00010958,2]
[336223428,1724741438172,-500.0,0.00010958,2]
[336223429,1724741438181,-85.8519628,0.00010958,2]